bitfinex/quotes_BTCUSD_20251110
["timestamp","ask_amount","ask_price","bid_price","bid_amount"]
[1762805894546,0.18807598,106340.0,106320.0,0.18820142]
[1762805894547,0.02639,106330.0,106320.0,0.18820142]
[1762805896555,0.01126,106340.0,106330.0,0.18809367]
[1762805896838,0.0287255,106340.0,106330.0,0.20976367]
[1762805897191,0.0287255,106340.0,106330.0,0.23274367]
[1762805897401,0.01126,106340.0,106330.0,0.23274367]
[1762805897603,0.02639,106340.0,106330.0,0.18789367]
[1762805897883,0.25632132,106340.0,106330.0,0.18889367]
[1762805898084,0.30075956,106340.0,106330.0,0.001]
[1762805898319,0.25632132,106340.0,106330.0,0.001]
[1762805898964,0.25632132,106340.0,106330.0,0.003]
[1762805899721,0.25632132,106340.0,106330.0,0.001]
[1762805900139,0.25632132,106340.0,106320.0,0.18820141]
[1762805900520,0.03952,106330.0,106320.0,0.18820141]
[1762805900648,0.05698534,106330.0,106320.0,0.18820141]
[1762805903126,0.05698534,106330.0,106320.0,0.19920141]
[1762805904316,0.24507901,106330.0,106320.0,0.19920141]
[1762805904515,0.05698534,106330.0,106320.0,0.19920141]
[1762805905306,0.03259534,106330.0,106320.0,0.19920141]
[1762805905719,0.05738534,106330.0,106320.0,0.19920141]
[1762805907266,0.05738534,106330.0,106320.0,0.20920141]
[1762805908507,0.05761835,106330.0,106320.0,0.20920141]
[1762805909128,0.24571202,106330.0,106320.0,0.02109006]
[1762805909312,0.05761835,106330.0,106320.0,0.20920142]
[1762805909687,0.24571202,106330.0,106320.0,0.20920142]
[1762805910080,0.05761835,106330.0,106320.0,0.20920142]
[1762805910286,0.24571202,106330.0,106320.0,0.20920142]
[1762805911348,0.29021686,106330.0,106320.0,0.02109006]
[1762805912370,0.29900858,106330.0,106320.0,0.02109006]
[1762805912975,0.29900858,106330.0,106320.0,0.20920142]
[1762805913170,0.29900858,106330.0,106320.0,0.02109006]
[1762805914226,0.29900858,106330.0,106320.0,0.20920142]
[1762805914435,0.25450374,106330.0,106320.0,0.02109006]
[1762805914675,0.25450374,106330.0,106320.0,0.20920142]
[1762805915545,0.25450374,106330.0,106320.0,0.13920141]
[1762805916512,0.25450374,106330.0,106310.0,0.18812855]
[1762805916780,0.04103,106320.0,106310.0,0.18812855]
[1762805916891,0.05849534,106320.0,106310.0,0.18812855]
[1762805917961,0.2466067,106320.0,106310.0,0.18812855]
[1762805918334,0.05849534,106320.0,106310.0,0.18812855]
[1762805918728,0.05849534,106320.0,106310.0,0.19112855]
[1762805918902,0.05849534,106320.0,106310.0,0.20112855]
[1762805919685,0.2466067,106320.0,106310.0,0.20112855]
[1762805919879,0.05849534,106320.0,106310.0,0.20112855]
[1762805920423,0.2466067,106320.0,106310.0,0.20112855]
[1762805920628,0.2466067,106320.0,106310.0,0.21112855]
[1762805920836,0.01746534,106320.0,106310.0,0.71727289]
[1762805921128,0.01746534,106320.0,106310.0,0.74017289]
[1762805921917,0.01746534,106320.0,106310.0,1.06317289]
[1762805923154,0.01746534,106320.0,106310.0,0.57250855]
[1762805923333,0.01746534,106320.0,106310.0,1.06317289]
[1762805925180,0.01746534,106320.0,106310.0,1.06911289]
[1762805928931,0.2578967,106320.0,106310.0,0.346]
[1762805929273,0.06978534,106320.0,106310.0,0.21112905]
[1762805929480,0.01746534,106320.0,106310.0,0.61233396]
[1762805930879,0.01746534,106320.0,106310.0,0.58943396]
[1762805931486,0.01746534,106320.0,106310.0,0.61233396]
[1762805933583,0.03394534,106320.0,106310.0,0.21112905]
[1762805933779,0.01746534,106320.0,106310.0,0.59041396]
[1762805934388,0.01746534,106320.0,106310.0,0.61392396]
[1762805934751,0.01154075,106330.0,106320.0,0.18811136]
[1762805934929,0.05337915,106330.0,106320.0,0.50736384]
[1762805935115,0.06998915,106330.0,106320.0,0.50736384]
[1762805935316,0.04571915,106330.0,106320.0,0.51978384]
[1762805938923,0.04571915,106330.0,106320.0,0.83903632]
[1762805939121,0.02910915,106330.0,106320.0,0.85475632]
[1762805939322,0.01784915,106330.0,106320.0,0.87826632]
[1762805939549,0.00021491,106330.0,106320.0,0.87826632]
[1762805940448,0.00021491,106330.0,106320.0,1.20126632]
[1762805940681,0.00021491,106330.0,106320.0,1.26777428]
[1762805941522,0.00021491,106330.0,106320.0,1.24426428]
[1762805941731,0.05235491,106330.0,106320.0,0.83036384]
[1762805941942,0.26226932,106330.0,106320.0,0.18811136]
[1762805942146,0.26226932,106330.0,106320.0,0.003]
[1762805942725,0.24044858,106330.0,106320.0,0.003]
[1762805942928,0.24044858,106330.0,106320.0,0.023]
[1762805943088,0.25807935,106330.0,106320.0,0.20911136]
[1762805943306,0.25807935,106330.0,106320.0,0.20811136]
[1762805943697,0.25807935,106330.0,106320.0,0.02]
[1762805944106,0.25807935,106330.0,106320.0,0.20811136]
[1762805945004,0.25807935,106330.0,106320.0,0.02]
[1762805945231,0.25807935,106330.0,106320.0,0.20811136]
[1762805945911,0.25807935,106330.0,106320.0,0.02]
[1762805946340,0.33574614,106330.0,106320.0,0.02]
[1762805946545,0.25807935,106330.0,106320.0,0.02]
[1762805946951,0.57733183,106330.0,106320.0,0.02]
[1762805948996,1.00232254,106330.0,106320.0,0.02]
[1762805949235,0.8935857,106330.0,106320.0,0.02]
[1762805949470,1.34035407,106330.0,106320.0,0.02]
[1762805949740,1.31468743,106330.0,106320.0,0.02]
[1762805949986,1.32350455,106330.0,106320.0,0.02]
[1762805950239,1.32450455,106330.0,106320.0,0.02]
[1762805950665,1.32550455,106330.0,106320.0,0.02]
[1762805951743,1.00625207,106330.0,106320.0,0.02]
[1762805951958,1.32550455,106330.0,106320.0,0.02]
[1762805953075,0.18814446,106310.0,106290.0,0.46671067]
[1762805953304,0.21603675,106300.0,106290.0,0.46671067]
[1762805953549,0.05216,106300.0,106290.0,0.46671067]
[1762805953972,0.05216,106300.0,106290.0,0.47611889]
[1762805954436,0.24030675,106300.0,106290.0,0.47711889]
[1762805954721,0.24030675,106300.0,106290.0,0.47611889]
[1762805954948,0.24030675,106300.0,106290.0,0.51882515]
[1762805955158,0.24030675,106300.0,106290.0,0.52082515]
[1762805955396,0.05216,106300.0,106290.0,0.52082515]
[1762805955817,0.05216,106300.0,106290.0,0.51882515]
[1762805956019,0.05216,106300.0,106290.0,0.52182515]
[1762805956528,0.03555,106310.0,106300.0,0.18814675]
[1762805956739,0.93992279,106330.0,106320.0,0.18811136]
[1762805956740,0.00021491,106330.0,106320.0,0.18811136]
[1762805956933,0.03576491,106330.0,106320.0,0.50736384]
[1762805957138,0.069982,106330.0,106320.0,0.50736384]
[1762805957874,0.045712,106330.0,106320.0,0.50736384]
[1762805958079,0.02810491,106330.0,106320.0,0.82661632]
[1762805958319,0.02910491,106330.0,106320.0,0.82661632]
[1762805958470,0.02910491,106330.0,106320.0,0.50736384]
[1762805958906,0.03010491,106330.0,106320.0,0.50736384]
[1762805960464,0.05437491,106330.0,106320.0,0.50736384]
[1762805960702,0.24246858,106330.0,106320.0,0.50736384]
[1762805960915,0.05437491,106330.0,106320.0,0.50736384]
[1762805961123,0.05437491,106330.0,106320.0,0.18811136]
[1762805961329,0.05437491,106330.0,106320.0,0.50736384]
[1762805964354,0.05437491,106330.0,106320.0,0.18811136]
[1762805964567,0.24246858,106330.0,106320.0,0.50736384]
[1762805964742,0.05437491,106330.0,106320.0,0.50736384]
[1762805965368,0.05437491,106330.0,106320.0,0.82661632]
[1762805965499,0.00221491,106330.0,106320.0,0.85369632]
[1762805965712,0.00221491,106330.0,106320.0,0.87859632]
[1762805966526,0.00121491,106330.0,106320.0,0.87859632]
[1762805966963,0.00121491,106330.0,106320.0,0.87959632]
[1762805967171,0.00021491,106330.0,106320.0,0.90786365]
[1762805967338,0.00021491,106330.0,106320.0,0.90986365]
[1762805968061,0.00021491,106330.0,106320.0,1.23286365]
[1762805974512,0.00021491,106330.0,106320.0,1.55211613]
[1762805974743,0.00021491,106330.0,106320.0,1.58829841]
[1762805974964,0.00021491,106330.0,106320.0,1.65480637]
[1762805975440,1e-08,106330.0,106320.0,1.65480637]
[1762805975653,1e-08,106330.0,106320.0,1.65380637]
[1762805976113,1e-08,106330.0,106320.0,1.65480637]
[1762805976590,1e-08,106330.0,106320.0,2.54805585]
[1762805976812,1e-08,106330.0,106320.0,1.59029841]
[1762805977005,1e-08,106330.0,106320.0,1.58829841]
[1762805977376,1e-08,106330.0,106320.0,1.67630566]
[1762805978053,0.18802293,106370.0,106360.0,0.50729309]
[1762805978265,0.15861434,106380.0,106360.0,0.50742823]
[1762805978502,0.20323293,106370.0,106360.0,0.50742823]
[1762805978729,0.22714457,106370.0,106360.0,0.31938762]
[1762805979197,0.04012164,106370.0,106360.0,0.50742823]
[1762805979605,0.22914457,106370.0,106360.0,0.50742823]
[1762805981827,0.54839705,106370.0,106360.0,0.00013514]
[1762805982032,0.22914457,106370.0,106360.0,0.18817575]
[1762805982878,0.04112164,106370.0,106360.0,0.50742823]
[1762805983082,0.01814164,106370.0,106360.0,0.50742823]
[1762805983285,0.00293164,106370.0,106360.0,0.87866071]
[1762805984232,0.00293164,106370.0,106360.0,0.85376071]
[1762805984426,0.00293164,106370.0,106360.0,0.87866071]
[1762805986638,0.00193164,106370.0,106360.0,0.87866071]
[1762805986833,0.00093164,106370.0,106360.0,0.87866071]
[1762805987591,0.01851098,106370.0,106360.0,0.87866071]
[1762805987825,0.01851098,106370.0,106360.0,0.55940823]
[1762805988035,0.26376212,106370.0,106360.0,0.00013514]
[1762805988244,0.37595346,106370.0,106360.0,0.18817575]
[1762805988450,0.24472391,106370.0,106360.0,0.00013514]
[1762805988665,0.56397639,106370.0,106360.0,0.00013514]
[1762805989078,0.24472391,106370.0,106360.0,0.00013514]
[1762805989287,0.28912499,106370.0,106360.0,0.00013514]
[1762805990360,0.9800652,106370.0,106360.0,0.00013514]
[1762805990563,0.9820652,106370.0,106360.0,0.00013514]
[1762805991027,0.49112499,106370.0,106360.0,0.00013514]
[1762805991456,3.30711383,106370.0,106360.0,0.00013514]
[1762805991664,2.61564695,106370.0,106360.0,0.00013514]
[1762805991873,2.40783483,106370.0,106360.0,0.00013514]
[1762805992947,2.42258491,106370.0,106360.0,0.00013514]
[1762805993620,2.14763591,106370.0,106360.0,0.00013514]
[1762805993832,1.75446683,106370.0,106360.0,0.00013514]
[1762805994436,1.73972062,106370.0,106360.0,0.00013514]
[1762805997811,1.7397223,106370.0,106360.0,0.00013514]
[1762805998572,1.74972229,106370.0,106360.0,0.00013514]
[1762805998778,1.84782402,106370.0,106360.0,0.00013514]
[1762805999336,1.74972229,106370.0,106360.0,0.00013514]
[1762806000773,0.86059581,106370.0,106360.0,0.00013514]
[1762806000942,1.06059581,106370.0,106360.0,0.00013514]
[1762806001703,1.55153602,106370.0,106360.0,0.00013514]
[1762806001924,2.65216188,106370.0,106360.0,0.00013514]
[1762806002145,0.02253184,106370.0,106360.0,0.22807575]
[1762806002352,0.02253184,106370.0,106360.0,0.71901596]
[1762806002781,0.02053184,106370.0,106360.0,0.71901596]
[1762806002983,0.00293164,106370.0,106360.0,1.04201596]
[1762806004237,0.00093164,106370.0,106360.0,1.04201596]
[1762806005055,0.00093164,106370.0,106360.0,1.14401596]
[1762806005258,0.00093164,106370.0,106360.0,1.14801596]
[1762806009634,0.00093164,106370.0,106360.0,1.17627126]
[1762806009823,0.00093164,106370.0,106360.0,0.68533105]
[1762806010188,0.01222164,106370.0,106360.0,0.66178105]
[1762806010904,0.01222164,106370.0,106360.0,0.65578105]
[1762806011110,0.01222164,106370.0,106360.0,0.67933105]
[1762806011308,0.01222164,106370.0,106360.0,0.68433105]
[1762806011515,0.01222164,106370.0,106360.0,0.66078105]
[1762806012728,0.23971457,106370.0,106360.0,0.45639044]
[1762806012930,0.23971457,106370.0,106360.0,0.64443105]
[1762806013152,0.25726953,106370.0,106360.0,0.10513514]
[1762806013597,0.25726953,106370.0,106360.0,0.10791656]
[1762806013994,0.25726953,106370.0,106360.0,0.10591656]
[1762806014322,0.0467066,106370.0,106360.0,0.29395717]
[1762806014532,0.25826953,106370.0,106360.0,0.10291656]
[1762806014937,0.25926953,106370.0,106360.0,0.10291656]
[1762806015144,0.25826953,106370.0,106360.0,0.05991656]
[1762806015342,0.25726953,106370.0,106360.0,0.05991656]
[1762806015968,0.25727142,106370.0,106360.0,0.05991656]
[1762806016995,0.62479922,106370.0,106360.0,0.05991656]
[1762806017186,1.31573943,106370.0,106360.0,0.05991656]
[1762806018011,0.82479922,106370.0,106360.0,0.05991656]
[1762806018441,0.82579922,106370.0,106360.0,0.05991656]
[1762806018649,1.52417102,106370.0,106360.0,0.05624656]
[1762806018857,1.58460802,106370.0,106360.0,0.05624656]
[1762806019984,1.39781102,106370.0,106360.0,0.05624656]
[1762806020556,0.90687081,106370.0,106360.0,0.05624656]
[1762806020755,1.11051781,106370.0,106360.0,0.05624656]
[1762806020970,1.60145802,106370.0,106360.0,0.05624656]
[1762806022041,1.11051781,106370.0,106360.0,0.05624656]
[1762806022481,1.60145802,106370.0,106360.0,0.00224656]
[1762806022688,1.6376403,106370.0,106360.0,0.00224656]
[1762806022891,1.8376403,106370.0,106360.0,0.00224656]
[1762806023522,1.84642032,106370.0,106360.0,0.00224656]
[1762806023948,1.84442032,106370.0,106360.0,0.00224656]
[1762806024164,0.18810866,106330.0,106310.0,0.18812417]
[1762806024365,0.21563136,106320.0,106310.0,0.21653003]
[1762806024574,0.05162,106320.0,106310.0,0.18825966]
[1762806024827,0.05162,106320.0,106310.0,0.67919987]
[1762806025445,0.05162,106320.0,106310.0,0.68119987]
[1762806025804,0.05162,106320.0,106310.0,0.67919987]
[1762806026405,0.05162,106320.0,106310.0,0.68019987]
[1762806026873,0.05162,106320.0,106310.0,0.67919987]
[1762806027076,0.05162,106320.0,106310.0,0.68019987]
[1762806027288,0.05162,106320.0,106310.0,0.68219987]
[1762806027984,0.23973136,106320.0,106310.0,0.19125966]
[1762806029164,0.05162,106320.0,106310.0,0.19125966]
[1762806029581,0.23973136,106320.0,106310.0,0.19125966]
[1762806029784,0.05162,106320.0,106310.0,0.19125966]
[1762806030198,0.23973136,106320.0,106310.0,0.19125966]
[1762806030609,0.05162,106320.0,106310.0,0.19125966]
[1762806030809,0.23973136,106320.0,106310.0,0.00313549]
[1762806031810,0.23973136,106320.0,106310.0,0.00213549]
[1762806032013,0.23973136,106320.0,106310.0,0.19026454]
[1762806032260,0.23973136,106320.0,106310.0,0.00113549]
[1762806032685,0.23973136,106320.0,106310.0,0.00213549]
[1762806032892,0.283989,106320.0,106310.0,0.00213549]
[1762806033298,0.30152174,106320.0,106310.0,0.00213549]
[1762806033509,0.62452174,106320.0,106310.0,0.00213549]
[1762806034975,0.62452174,106320.0,106310.0,0.19026454]
[1762806035173,0.39215274,106320.0,106310.0,0.19026454]
[1762806035403,0.5802641,106320.0,106310.0,0.19026454]
[1762806035581,0.39215274,106320.0,106310.0,0.19026454]
[1762806035789,0.5802641,106320.0,106310.0,0.19026454]
[1762806036028,0.67709993,106320.0,106310.0,0.00213549]
[1762806036217,0.67709993,106320.0,106310.0,0.19026454]
[1762806036466,0.48898857,106320.0,106310.0,0.19026454]
[1762806036859,0.67709993,106320.0,106310.0,0.19026454]
[1762806037161,0.48898857,106320.0,106310.0,0.19026454]
[1762806037355,0.67709993,106320.0,106310.0,0.19026454]
[1762806037769,0.39215274,106320.0,106310.0,0.19026454]
[1762806037978,0.06915274,106320.0,106310.0,0.19026454]
[1762806038182,0.06915274,106320.0,106310.0,0.68120475]
[1762806039110,0.2572641,106320.0,106310.0,0.19026454]
[1762806041675,0.06915274,106320.0,106310.0,0.19026454]
[1762806043648,0.28298876,106320.0,106310.0,0.19026454]
[1762806044713,0.2572641,106320.0,106310.0,0.19026454]
[1762806044924,0.06915274,106320.0,106310.0,0.19026454]
[1762806045159,0.2572641,106320.0,106310.0,0.19026454]
[1762806045373,0.06915274,106320.0,106310.0,0.19026454]
[1762806045997,0.2572641,106320.0,106310.0,0.19026454]
[1762806046877,0.2572641,106320.0,106310.0,0.00213549]
[1762806048652,0.3217999,106320.0,106310.0,0.00213549]
[1762806048831,1.00783383,106320.0,106310.0,0.00213549]
[1762806049257,0.6447999,106320.0,106310.0,0.00213549]
[1762806049590,0.65360447,106320.0,106310.0,0.00213549]
[1762806049729,0.66835633,106320.0,106310.0,0.00213549]
[1762806051044,0.987787,106320.0,106310.0,0.00213549]
[1762806055571,0.66835835,106320.0,106310.0,0.00213549]
[1762806055770,0.987787,106320.0,106310.0,0.00213549]
[1762806056851,0.987787,106320.0,106310.0,0.00163023]
[1762806059350,1.30721565,106320.0,106310.0,0.00163023]
[1762806059900,0.9232512,106320.0,106310.0,0.00163023]
[1762806060525,0.60382255,106320.0,106310.0,0.00163023]
[1762806060757,0.60382255,106320.0,106310.0,0.18975928]
[1762806060991,0.60382255,106320.0,106310.0,0.50918793]
[1762806061520,0.60382255,106320.0,106310.0,0.00163023]
[1762806061726,0.9232512,106320.0,106310.0,0.00163023]
[1762806061924,1.02135293,106320.0,106310.0,0.00163023]
[1762806064416,0.18814664,106310.0,106290.0,0.49063045]
[1762806064586,0.02643,106300.0,106290.0,0.49077358]
[1762806064787,0.06676274,106300.0,106290.0,0.49077358]
[1762806065497,0.25490949,106300.0,106290.0,0.17134493]
[1762806065694,0.25490949,106300.0,106290.0,0.18830758]
[1762806065902,0.25490949,106300.0,106290.0,0.50973623]
[1762806066357,0.25490949,106300.0,106290.0,0.51073623]
[1762806066558,0.25490949,106300.0,106290.0,0.51373623]
[1762806066767,0.06676274,106300.0,106290.0,0.51373623]
[1762806070228,0.06676274,106300.0,106290.0,0.5135931]
[1762806074468,0.04923,106300.0,106290.0,0.5135931]
[1762806075218,0.22218136,106320.0,106310.0,0.18812905]
[1762806075351,0.21703425,106320.0,106310.0,0.18812905]
[1762806075557,0.23219425,106320.0,106310.0,0.5075577]
[1762806075784,0.04408289,106320.0,106310.0,0.5075577]
[1762806075984,0.06688289,106320.0,106310.0,0.5075577]
[1762806076334,0.25499425,106320.0,106310.0,0.5075577]
[1762806076620,0.18814675,106300.0,106290.0,0.09489172]
[1762806076847,0.20330675,106300.0,106290.0,0.18816445]
[1762806077084,0.03796,106300.0,106290.0,0.18816445]
[1762806077283,0.22610675,106300.0,106290.0,0.18816445]
[1762806077522,0.22610675,106300.0,106280.0,0.61180232]
[1762806077742,0.04925,106290.0,106280.0,0.61194554]
[1762806077915,0.23741445,106290.0,106280.0,0.29251689]
[1762806078155,0.04925,106290.0,106280.0,0.58366667]
[1762806078580,0.04925,106290.0,106280.0,0.51704905]
[1762806078793,0.23741445,106290.0,106280.0,0.18832538]
[1762806079151,0.23741445,106290.0,106280.0,0.50975403]
[1762806079351,0.25506755,106290.0,106280.0,0.51075403]
[1762806079769,0.0669031,106290.0,106280.0,0.51075403]
[1762806079935,0.25506755,106290.0,106280.0,0.51075403]
[1762806080363,0.04925,106290.0,106280.0,0.51075403]
[1762806081451,0.25645266,106290.0,106280.0,0.19132538]
[1762806081820,0.23741445,106290.0,106280.0,0.51075403]
[1762806081993,0.04925,106290.0,106280.0,0.51075403]
[1762806082211,0.23741445,106290.0,106280.0,0.51075403]
[1762806083602,0.23741445,106290.0,106280.0,0.00314322]
[1762806083840,0.5568431,106290.0,106280.0,0.00314322]
[1762806084034,0.57448335,106290.0,106280.0,0.00314322]
[1762806084469,0.2550547,106290.0,106280.0,0.00314322]
[1762806084675,0.2550547,106290.0,106280.0,0.18832538]
[1762806084881,0.65074636,106290.0,106280.0,0.00014322]
[1762806085097,1.04698036,106290.0,106280.0,0.00114322]
[1762806085306,1.97667878,106290.0,106280.0,0.00114322]
[1762806085512,2.0013914,106290.0,106280.0,0.00014322]
[1762806086143,2.29186751,106290.0,106280.0,1e-08]
[1762806086346,2.47613914,106290.0,106280.0,1e-08]
[1762806086552,2.17700783,106290.0,106280.0,1e-08]
[1762806086760,2.12905531,106290.0,106280.0,1e-08]
[1762806086962,2.13005531,106290.0,106280.0,1e-08]
[1762806087378,2.12905531,106290.0,106280.0,1e-08]
[1762806087709,1.57838532,106290.0,106280.0,1e-08]
[1762806087914,1.90781396,106290.0,106280.0,1e-08]
[1762806088163,1.91081396,106290.0,106280.0,1e-08]
[1762806088364,1.56256963,106290.0,106280.0,1e-08]
[1762806088572,1.53427622,106290.0,106280.0,1e-08]
[1762806088775,0.01127,106250.0,106240.0,0.46636638]
[1762806089012,0.02641,106250.0,106240.0,0.18873051]
[1762806089204,0.55863394,106250.0,106240.0,0.0004775]
[1762806089357,0.05097,106250.0,106240.0,0.18873051]
[1762806089562,0.37039865,106250.0,106240.0,0.18873051]
[1762806090272,0.55863394,106250.0,106240.0,0.18973051]
[1762806090478,0.55863394,106250.0,106240.0,0.0014775]
[1762806090671,0.59170596,106250.0,106240.0,0.18973051]
[1762806090814,0.59170596,106250.0,106240.0,0.0014775]
[1762806091016,0.63576188,106250.0,106240.0,0.0014775]
[1762806091214,0.63576188,106250.0,106240.0,0.0024775]
[1762806091426,0.65332776,106250.0,106240.0,0.0024775]
[1762806092021,0.85332776,106250.0,106240.0,0.0014775]
[1762806092259,2.03218009,106250.0,106240.0,0.0014775]
[1762806092428,2.0658927,106250.0,106240.0,0.0014775]
[1762806092631,2.09419676,106250.0,106240.0,0.0014775]
[1762806092973,1.16840111,106250.0,106240.0,0.0004775]
[1762806093176,1.33367311,106250.0,106240.0,0.0004775]
[1762806093396,1.68915769,106250.0,106240.0,0.0004775]
[1762806093624,1.69915768,106250.0,106240.0,0.0004775]
[1762806094251,2.07064224,106250.0,106240.0,0.0004775]
[1762806094462,2.06964224,106250.0,106240.0,0.0004775]
[1762806094664,2.07464224,106250.0,106240.0,0.0004775]
[1762806095074,2.07664224,106250.0,106240.0,0.0004775]
[1762806095729,2.07464224,106250.0,106240.0,0.0004775]
[1762806095938,2.06964224,106250.0,106240.0,0.0004775]
[1762806096160,2.07464224,106250.0,106240.0,0.0004775]
[1762806096386,2.14377818,106250.0,106240.0,1e-08]
[1762806096594,0.95747072,106220.0,106210.0,0.00319515]
[1762806096804,3.46224082,106220.0,106210.0,0.00319515]
[1762806097009,3.48680082,106220.0,106210.0,0.00319515]
[1762806097435,3.51511262,106220.0,106210.0,0.00319515]
[1762806097838,3.52111262,106220.0,106210.0,0.00319515]
[1762806098465,3.54635252,106220.0,106210.0,0.00319515]
[1762806099939,3.52111262,106220.0,106210.0,0.00319515]
[1762806100828,3.54635252,106220.0,106210.0,0.00319515]
[1762806101249,3.94831967,106220.0,106210.0,0.00319515]
[1762806101448,3.59960526,106220.0,106210.0,0.00319515]
[1762806101651,3.96308983,106220.0,106210.0,0.00319515]
[1762806101949,3.97208983,106220.0,106210.0,0.00319515]
[1762806102180,0.57827395,106180.0,106170.0,0.18837713]
[1762806102325,0.59583983,106180.0,106160.0,0.19815086]
[1762806102527,0.0397,106170.0,106160.0,0.19815086]
[1762806102735,0.05726588,106170.0,106160.0,0.19815086]
[1762806102945,0.05726588,106170.0,106160.0,0.19745086]
[1762806103284,0.03270588,106170.0,106160.0,0.19861847]
[1762806103494,0.01804351,106170.0,106160.0,0.24059847]
[1762806103911,0.01804351,106170.0,106160.0,0.24159847]
[1762806104130,0.01804351,106170.0,106160.0,0.23859847]
[1762806104539,0.01804351,106170.0,106160.0,0.21868847]
[1762806105706,0.01804351,106170.0,106160.0,0.22268847]
[1762806107861,0.05774351,106170.0,106160.0,0.20661847]
[1762806108070,0.03318351,106170.0,106160.0,0.20661847]
[1762806110207,0.04445351,106170.0,106160.0,0.21903847]
[1762806111410,0.02931351,106170.0,106160.0,0.25901847]
[1762806111793,0.01804351,106170.0,106160.0,0.25901847]
[1762806114359,0.01798482,106170.0,106160.0,0.25901847]
[1762806119726,0.01798482,106170.0,106160.0,0.20661847]
[1762806119727,0.08177233,106170.0,106160.0,0.20661847]
[1762806119965,0.27014946,106170.0,106160.0,0.20661847]
[1762806120166,0.05769482,106170.0,106160.0,0.20661847]
[1762806120381,0.03455482,106170.0,106160.0,0.20661847]
[1762806120582,0.03455482,106170.0,106160.0,0.21884847]
[1762806121663,0.03455482,106170.0,106160.0,0.23476847]
[1762806124037,0.03455482,106170.0,106160.0,0.19719873]
[1762806124261,0.05769482,106170.0,106160.0,0.19719873]
[1762806124761,0.24607195,106170.0,106160.0,0.19719873]
[1762806124975,0.05769482,106170.0,106160.0,0.19719873]
[1762806125166,0.01798482,106170.0,106160.0,0.24878873]
[1762806130895,0.01798482,106170.0,106160.0,0.74147908]
[1762806131522,0.01798482,106170.0,106160.0,0.24878873]
[1762806132516,0.01798482,106170.0,106160.0,0.74147908]
[1762806135003,0.01798482,106170.0,106160.0,0.56893262]
[1762806136497,0.01798482,106170.0,106160.0,0.24878873]
[1762806136751,0.01798482,106170.0,106160.0,0.22534873]
[1762806138638,0.07407666,106170.0,106160.0,0.24878873]
[1762806138878,0.01798482,106170.0,106160.0,0.24878873]
[1762806139359,0.03455482,106170.0,106160.0,0.19719873]
[1762806139603,0.01798482,106170.0,106160.0,0.24878873]
[1762806140081,0.01798482,106170.0,106160.0,0.56893262]
[1762806141572,0.57750584,106170.0,106160.0,0.00916761]
[1762806141776,0.35546368,106170.0,106160.0,0.00916761]
[1762806142132,0.67560757,106170.0,106160.0,0.00916761]
[1762806142545,0.18841262,106150.0,106140.0,0.18961028]
[1762806142764,0.01750719,106150.0,106140.0,0.20135028]
[1762806142967,0.01750719,106150.0,106140.0,0.21753028]
[1762806144643,0.01750719,106150.0,106140.0,0.22053028]
[1762806144844,0.01750719,106150.0,106140.0,0.22453028]
[1762806146090,0.25643981,106150.0,106140.0,0.17317028]
[1762806147378,0.06802719,106150.0,106140.0,0.17017028]
[1762806147596,0.01750719,106150.0,106140.0,0.53541417]
[1762806147813,0.19460594,106160.0,106150.0,0.18841262]
[1762806147988,0.23590683,106160.0,106150.0,0.18841262]
[1762806148193,0.06311089,106160.0,106150.0,0.18841262]
[1762806148450,0.57164965,106160.0,106150.0,0.0002336]
[1762806148973,0.64977098,106160.0,106150.0,0.0012336]
[1762806150483,0.63212009,106160.0,106150.0,0.0012336]
[1762806151506,0.55399876,106160.0,106150.0,0.0012336]
[1762806153264,0.22379476,106170.0,106160.0,0.18839487]
[1762806153694,0.23939476,106170.0,106160.0,0.18839487]
[1762806153893,0.55953865,106170.0,106160.0,0.18839487]
[1762806154622,0.55953865,106170.0,106160.0,0.11939487]
[1762806154780,0.56053865,106170.0,106160.0,0.11939487]
[1762806158744,0.37216152,106170.0,106160.0,0.11939487]
[1762806158979,0.56053865,106170.0,106160.0,0.11939487]
[1762806159499,0.37216152,106170.0,106160.0,0.11939487]
[1762806160511,0.00147763,106170.0,106160.0,0.17060487]
[1762806161502,0.00047763,106170.0,106160.0,0.17060487]
[1762806161709,0.00047763,106170.0,106160.0,0.17160487]
[1762806162987,0.00368763,106170.0,106160.0,0.14831487]
[1762806163185,0.55145865,106170.0,106160.0,0.18939487]
[1762806163401,0.62606152,106170.0,106160.0,0.18939487]
[1762806163603,0.55145865,106170.0,106160.0,0.001]
[1762806163811,0.55145865,106170.0,106160.0,0.18939487]
[1762806164834,0.36308152,106170.0,106160.0,0.18939487]
[1762806165012,0.55145865,106170.0,106160.0,0.18939487]
[1762806165413,0.55145865,106170.0,106160.0,0.001]
[1762806166472,0.55145865,106170.0,106160.0,0.18939487]
[1762806166679,0.00047763,106170.0,106160.0,0.56074876]
[1762806166887,0.00047763,106170.0,106160.0,0.24060487]
[1762806168589,0.00047763,106170.0,106160.0,0.56074876]
[1762806169111,0.00047763,106170.0,106160.0,0.62736638]
[1762806169310,0.00047763,106170.0,106160.0,0.88374876]
[1762806169554,0.00047763,106170.0,106160.0,0.95036638]
[1762806169866,0.00047763,106170.0,106160.0,0.94936638]
[1762806170227,0.00047763,106170.0,106160.0,0.95236638]
[1762806170634,0.00047763,106170.0,106160.0,0.95136638]
[1762806172076,0.00047763,106170.0,106160.0,0.95536638]
[1762806172279,0.00047763,106170.0,106160.0,0.99154866]
[1762806173024,0.00047763,106170.0,106160.0,1.31162179]
[1762806175002,0.00047763,106170.0,106160.0,1.27543951]
[1762806177288,0.00047763,106170.0,106160.0,1.31162179]
[1762806177910,0.00047763,106170.0,106160.0,1.6317303]
[1762806178234,0.00047763,106170.0,106160.0,1.31162179]
[1762806180271,0.05047763,106170.0,106160.0,1.31162179]
[1762806180477,0.00047763,106170.0,106160.0,1.31162179]
[1762806182149,0.00047763,106170.0,106160.0,1.27543951]
[1762806185498,0.05047763,106170.0,106160.0,1.27543951]
[1762806187973,0.05047763,106170.0,106160.0,0.63522249]
[1762806188212,0.05047763,106170.0,106160.0,1.27543951]
[1762806189408,0.05047763,106170.0,106160.0,1.31162179]
[1762806189627,0.00047763,106170.0,106160.0,1.6317303]
[1762806190397,0.00047763,106170.0,106160.0,1.56511268]
[1762806192164,0.00047763,106170.0,106160.0,1.24500417]
[1762806193094,0.00047763,106170.0,106160.0,1.31206427]
[1762806193303,0.00047763,106170.0,106160.0,1.24500417]
[1762806194282,0.00047763,106170.0,106160.0,1.27588962]
[1762806195720,0.00047763,106170.0,106160.0,0.6356726]
[1762806195923,0.00047763,106170.0,106160.0,0.95578111]
[1762806196304,0.00047763,106170.0,106160.0,1.27588962]
[1762806197541,0.00047763,106170.0,106160.0,0.95578111]
[1762806197917,0.00047763,106170.0,106160.0,0.63278111]
[1762806200353,0.05047763,106170.0,106160.0,0.63278111]
[1762806201623,0.05047763,106170.0,106160.0,0.95288962]
[1762806203374,0.05047763,106170.0,106160.0,1.27588962]
[1762806203712,0.05047763,106170.0,106160.0,1.20882189]